[Event "Marmaris Karya-12 IM 2022"]
[Site "Icmeler-Marmaris"]
[Date "2022.01.22"]
[Round "1.2"]
[White "Inci, Okan"]
[Black "Darban, Morteza"]
[Result "0-1"]
[ECO "E97"]
[WhiteElo "1653"]
[BlackElo "2261"]
[Annotator "ChessBase"]
[PlyCount "24"]
[EventDate "2022.01.22"]
[EventType "schev"]
[EventCountry "TUR"]
[SourceTitle "playchess.com"]
[Source "ChessBase"]
[SourceQuality "1"]
[TimeControl "5400+30"]

1. d4 {[%emt 0:01:00]} Nf6 {[%emt 0:01:00]} 2. Nf3 {[%emt 0:00:30]} d6 {[%emt 0:31:30]} 3. c4 {[%emt 0:02:30]} g6 {[%emt 0:00:30]} 4. Nc3 {[%emt 0:00:30]} Bg7 {[%emt 0:00:30]} 5. e4 {[%emt 0:00:30]} O-O {[%emt 0:00:30]} 6. Be2 {[%emt 0:00:30]} e5 {[%emt 0:00:30]} 7. O-O {[%emt 0:00:30]} Nc6 {[%emt 0:00:30]} 8. d5 {[%emt 0:00:30]} Ne7 {[%emt 0:00:30]} 9. b4 {[%emt 0:00:30]} a5 {[%emt 0:02:30]} 10. bxa5 {[%emt 0:00:30]} Rxa5 {[%emt 0:01:30]} 11. Nd2 {[%emt 0:06:30]} c6 {[%emt 0:10:30]} 12. Nb5 {[%emt 0:00:30]} Ra6 {[%emt 0:43:50]} 0-1

[Event "Marmaris Karya-12 IM 2022"]
[Site "Icmeler-Marmaris"]
[Date "2022.01.22"]
[Round "1.3"]
[White "Atayman, Evren"]
[Black "Ahmad, Al Khatib"]
[Result "0-1"]
[ECO "B33"]
[WhiteElo "1616"]
[BlackElo "2218"]
[Annotator "ChessBase"]
[PlyCount "76"]
[EventDate "2022.01.22"]
[EventType "schev"]
[EventCountry "TUR"]
[SourceTitle "playchess.com"]
[Source "ChessBase"]
[SourceQuality "1"]
[TimeControl "5400+30"]

1. e4 {[%emt 1:28:38]} c5 {[%emt 1:28:22]} 2. Nf3 {[%emt 0:00:57]} Nc6 {[%emt 0:00:30]} 3. d4 {[%emt 0:00:49]} cxd4 {[%emt 0:00:30]} 4. Nxd4 {[%emt 0:00:34]} Nf6 {[%emt 0:00:30]} 5. Nc3 {[%emt 0:00:39]} e5 6. Nf3 Bb4 7. Bd2 Bxc3 8. Bxc3 Nxe4 9. Bc4 Nxc3 10. bxc3 d6 11. Bd5 O-O 12. O-O Be6 13. Bb3 h6 14. Re1 Qc7 15. Qe2 Na5 16. Qd2 Rad8 17. Re3 Nc4 18. Bxc4 Bxc4 19. Re4 f5 20. Rh4 f4 21. Qd1 Qe7 22. g3 Be6 23. gxf4 exf4 24. Qd4 Qf6 25. Qxf6 Rxf6 26. Nd4 Bd7 27. Rh5 g5 28. h4 gxh4 29. Rxh4 Rc8 30. Ne2 f3 31. Ng3 Rxc3 32. Rb1 b6 33. Kh2 Rxc2 34. Re1 Rxf2+ 35. Kg1 Rg2+ 36. Kh1 Rxg3 37. Re7 f2 38. Kh2 f1=Q 0-1

[Event "Marmaris Karya-12 IM 2022"]
[Site "Icmeler-Marmaris"]
[Date "2022.01.22"]
[Round "1.4"]
[White "Ozcan, Alperen"]
[Black "Haussernot, Cecile"]
[Result "1-0"]
[ECO "D02"]
[WhiteElo "1578"]
[BlackElo "2188"]
[Annotator "ChessBase"]
[PlyCount "32"]
[EventDate "2022.01.22"]
[EventType "schev"]
[EventCountry "TUR"]
[SourceTitle "playchess.com"]
[Source "ChessBase"]
[SourceQuality "1"]
[TimeControl "5400+30"]

1. d4 {[%emt 0:01:00]} Nf6 {[%emt 0:01:00]} 2. Nf3 {[%emt 0:00:00]} d5 {[%emt 0:00:30]} 3. Bf4 {[%emt 0:00:00]} c5 {[%emt 0:00:30]} 4. e3 {[%emt 0:13:30]} Qb6 {[%emt 0:45:30]} 5. Qd3 {[%emt 0:04:30]} Nc6 {[%emt 0:00:30]} 6. e4 {[%emt 0:00:30]} c4 {[%emt 0:00:30]} 7. Qc3 {[%emt 0:01:30]} Bf5 {[%emt 0:00:30]} 8. Qd2 {[%emt 0:01:30]} g6 {[%emt 0:01:30]} 9. Nc3 {[%emt 0:00:30]} Bg7 {[%emt 0:00:30]} 10. Be3 {[%emt 0:00:30]} O-O {[%emt 0:00:30]} 11. O-O-O {[%emt 0:01:30]} Nh5 {[%emt 0:00:30]} 12. Bg5 {[%emt 0:00:30]} Nxd4 {[%emt 0:00:30]} 13. Qe3 {[%emt 0:00:30]} Qc7 {[%emt 0:00:30]} 14. Nh4 {[%emt 0:01:30]} Bd7 {[%emt 0:00:30]} 15. e5 {[%emt 0:01:30]} f5 {[%emt 0:00:30]} 16. Nxd5 {[%emt 0:00:30]} b5 {[%emt 0:44:30]} 1-0

[Event "Marmaris Karya-12 IM 2022"]
[Site "Icmeler-Marmaris"]
[Date "2022.01.22"]
[Round "1.5"]
[White "Ozturk, Ibrahim Muhammed"]
[Black "Boshra, Alshaeby"]
[Result "0-1"]
[ECO "B33"]
[WhiteElo "1265"]
[BlackElo "1974"]
[Annotator "ChessBase"]
[PlyCount "53"]
[EventDate "2022.01.22"]
[EventType "schev"]
[EventCountry "TUR"]
[SourceTitle "playchess.com"]
[Source "ChessBase"]
[SourceQuality "1"]
[TimeControl "5400+30"]

1. e4 {[%emt 0:00:00]} c5 {[%emt 0:00:00]} 2. Nf3 {[%emt 0:00:30]} Nc6 {[%emt 0:00:30]} 3. d4 {[%emt 0:48:30]} cxd4 {[%emt 0:42:30]} 4. Nxd4 {[%emt 0:00:30]} Nf6 {[%emt 0:01:30]} 5. Nc3 {[%emt 0:00:30]} e5 {[%emt 0:00:30]} 6. Nf3 {[%emt 0:00:30]} Bb4 {[%emt 0:01:30]} 7. Bd2 {[%emt 0:00:30]} Bxc3 {[%emt 0:01:30]} 8. Bxc3 {[%emt 0:00:30]} Nxe4 {[%emt 0:01:30]} 9. Bc4 {[%emt 0:00:30]} Nxc3 {[%emt 0:01:30]} 10. bxc3 {[%emt 0:00:30]} d6 {[%emt 0:01:30]} 11. Bd5 {[%emt 0:00:30]} O-O {[%emt 0:00:30]} 12. O-O {[%emt 0:00:30]} Be6 {[%emt 0:00:30]} 13. Bb3 {[%emt 0:00:30]} h6 {[%emt 0:01:30]} 14. Re1 {[%emt 0:00:30]} Qc7 {[%emt 0:00:30]} 15. Qe2 {[%emt 0:01:30]} Rad8 {[%emt 0:07:30]} 16. Red1 {[%emt 0:00:30]} d5 {[%emt 0:00:30]} 17. Rxd5 {[%emt 0:00:30]} Rxd5 {[%emt 0:00:30]} 18. g3 {[%emt 0:00:30]} Rd1+ {[%emt 0:00:30]} 19. Qxd1 {[%emt 0:00:30]} Bxb3 {[%emt 0:15:47]} 20. Nh4 {[%emt 0:06:30]} f5 {[%emt 0:00:38]} 21. Nf3 {[%emt 0:00:30]} f4 {[%emt 0:00:33]} 22. gxf4 {[%emt 0:00:30]} Be6 {[%emt 0:00:53]} 23. Nh4 {[%emt 0:00:30]} Qe7 {[%emt 0:01:37]} 24. Nf3 {[%emt 0:00:30]} Nd8 {[%emt 0:04:25]} 25. f5 {[%emt 0:02:30]} Bxf5 {[%emt 0:00:30]} 26. Nh4 {[%emt 0:00:30]} Be6 {[%emt 0:00:30]} 27. Nf3 {[%emt 0:09:30]} 0-1

[Event "Marmaris Karya-12 IM 2022"]
[Site "Icmeler-Marmaris"]
[Date "2022.01.22"]
[Round "2.1"]
[White "Darban, Morteza"]
[Black "Koseoglu, Osman Ogul"]
[Result "1-0"]
[ECO "C24"]
[WhiteElo "2261"]
[BlackElo "1733"]
[Annotator "ChessBase"]
[PlyCount "79"]
[EventDate "2022.01.22"]
[EventType "schev"]
[EventCountry "TUR"]
[SourceTitle "playchess.com"]
[Source "ChessBase"]
[SourceQuality "1"]
[TimeControl "5400+30"]

1. e4 {[%emt 0:00:00]} e5 {[%emt 0:01:00]} 2. Nf3 {[%emt 0:00:30]} d6 {[%emt 0:00:00]} 3. Bc4 {[%emt 0:02:30]} Be7 {[%emt 0:00:00]} 4. O-O {[%emt 0:04:30]} Nf6 {[%emt 0:00:30]} 5. d3 {[%emt 0:01:30]} c6 {[%emt 0:00:30]} 6. Re1 {[%emt 0:00:30]} b5 {[%emt 0:00:30]} 7. Bb3 {[%emt 0:00:30]} a5 {[%emt 0:00:30]} 8. c3 {[%emt 0:00:30]} Nbd7 {[%emt 0:01:30]} 9. d4 {[%emt 0:00:30]} a4 {[%emt 0:01:30]} 10. Bc2 {[%emt 0:00:30]} O-O {[%emt 0:00:30]} 11. a3 {[%emt 0:04:30]} Re8 {[%emt 0:02:30]} 12. c4 {[%emt 0:26:30]} Qc7 {[%emt 0:25:30]} 13. Nc3 {[%emt 0:02:30]} bxc4 {[%emt 0:05:30]} 14. Nxa4 {[%emt 0:00:30]} Bf8 {[%emt 0:00:30]} 15. h3 {[%emt 0:19:30]} d5 {[%emt 0:03:30]} 16. exd5 {[%emt 0:13:30]} e4 {[%emt 0:03:30]} 17. d6 {[%emt 0:01:27]} Qa7 {[%emt 0:04:30]} 18. Nh2 {[%emt 0:03:15]} Bxd6 {[%emt 0:01:30]} 19. Nf1 {[%emt 0:01:56]} Nf8 {[%emt 0:11:30]} 20. Nc3 {[%emt 0:02:57]} Ne6 {[%emt 0:08:30]} 21. Nxe4 {[%emt 0:03:05]} Nxe4 {[%emt 0:01:30]} 22. Bxe4 {[%emt 0:00:16]} Nxd4 {[%emt 0:00:30]} 23. Bxh7+ {[%emt 0:01:45]} Kf8 {[%emt 0:00:00]} 24. Be3 {[%emt 0:02:01]} c5 {[%emt 0:04:00]} 25. Qh5 {[%emt 0:01:15]} Re5 {[%emt 0:02:30]} 26. Bf4 {[%emt 0:00:30]} Rxe1 {[%emt 0:00:30]} 27. Bxd6+ {[%emt 0:00:30]} Re7 {[%emt 0:00:30]} 28. Bxc5 {[%emt 0:00:30]} Ne2+ {[%emt 0:00:30]} 29. Kh1 {[%emt 0:00:30]} Nf4 {[%emt 0:00:30]} 30. Bxe7+ {[%emt 0:00:30]} Qxe7 {[%emt 0:00:30]} 31. Qf3 {[%emt 0:00:30]} Nxh3 {[%emt 0:11:23]} 32. Qxa8 {[%emt 0:05:50]} Nxf2+ {[%emt 0:00:02]} 33. Kg1 {[%emt 0:00:04]} Qc5 {[%emt 0:00:16]} 34. Qf3 {[%emt 0:01:09]} Ng4+ {[%emt 0:03:40]} 35. Ne3 {[%emt 0:00:01]} Nxe3 {[%emt 0:00:20]} 36. Qf2 {[%emt 0:00:01]} c3 {[%emt 0:01:13]} 37. Rc1 {[%emt 0:00:30]} Qg5 {[%emt 0:00:30]} 38. Rxc3 {[%emt 0:00:30]} Bb7 {[%emt 0:00:30]} 39. Rxe3 {[%emt 0:00:30]} Bxg2 {[%emt 0:00:30]} 40. Rg3 {[%emt 0:00:30]} 1-0

[Event "Marmaris Karya-12 IM 2022"]
[Site "Icmeler-Marmaris"]
[Date "2022.01.22"]
[Round "2.2"]
[White "Ahmad, Al Khatib"]
[Black "Inci, Okan"]
[Result "1-0"]
[ECO "B30"]
[WhiteElo "2218"]
[BlackElo "1653"]
[Annotator "ChessBase"]
[PlyCount "107"]
[EventDate "2022.01.22"]
[EventType "schev"]
[EventCountry "TUR"]
[SourceTitle "playchess.com"]
[Source "ChessBase"]
[SourceQuality "1"]
[TimeControl "5400+30"]

1. e4 {[%emt 0:04:00]} c5 {[%emt 0:02:00]} 2. Nf3 {[%emt 0:00:00]} Nc6 {[%emt 0:17:30]} 3. Nc3 {[%emt 0:21:00]} e5 {[%emt 0:00:30]} 4. Bc4 {[%emt 0:00:30]} Be7 {[%emt 0:00:30]} 5. d3 {[%emt 0:00:30]} d6 {[%emt 0:00:30]} 6. O-O {[%emt 0:00:30]} Nf6 {[%emt 0:00:30]} 7. Ng5 {[%emt 0:00:30]} O-O {[%emt 0:00:30]} 8. f4 {[%emt 0:00:30]} Bg4 {[%emt 0:00:30]} 9. Qe1 {[%emt 0:00:30]} exf4 {[%emt 0:00:30]} 10. Bxf4 {[%emt 0:00:30]} Nd4 {[%emt 0:00:30]} 11. Qf2 {[%emt 0:00:30]} h6 {[%emt 0:00:30]} 12. Nf3 {[%emt 0:00:30]} Nxf3+ {[%emt 0:00:30]} 13. gxf3 {[%emt 0:00:30]} Be6 {[%emt 0:00:30]} 14. Qg2 {[%emt 0:00:30]} Kh8 {[%emt 0:00:30]} 15. Kh1 {[%emt 0:00:30]} d5 {[%emt 0:00:30]} 16. Rg1 {[%emt 0:00:30]} Rg8 {[%emt 0:00:30]} 17. exd5 {[%emt 0:00:30]} Nxd5 {[%emt 0:00:30]} 18. Bxh6 {[%emt 0:00:30]} gxh6 {[%emt 0:00:30]} 19. Qxg8+ {[%emt 0:00:30]} Qxg8 {[%emt 0:00:30]} 20. Rxg8+ {[%emt 0:00:30]} Rxg8 {[%emt 0:00:30]} 21. Bxd5 {[%emt 0:00:30]} Bh3 {[%emt 0:00:30]} 22. Rg1 {[%emt 0:00:30]} Rf8 {[%emt 0:00:30]} 23. Bxb7 {[%emt 0:00:30]} Rb8 {[%emt 0:00:30]} 24. Bd5 {[%emt 0:00:30]} Rxb2 {[%emt 0:00:30]} 25. Bb3 {[%emt 0:00:30]} Bd7 {[%emt 0:00:30]} 26. Nd1 {[%emt 0:00:30]} Rb1 {[%emt 0:00:30]} 27. Ne3 {[%emt 0:00:30]} Rxg1+ {[%emt 0:00:30]} 28. Kxg1 {[%emt 0:00:30]} Kg7 {[%emt 0:00:30]} 29. Kf2 {[%emt 0:00:30]} Bh3 {[%emt 0:00:30]} 30. Kg3 {[%emt 0:00:30]} Bd7 {[%emt 0:00:30]} 31. f4 {[%emt 0:00:30]} Kg6 {[%emt 0:00:30]} 32. Nc4 {[%emt 0:00:30]} f6 {[%emt 0:00:30]} 33. Ne3 {[%emt 0:00:30]} Bd6 {[%emt 0:00:30]} 34. Bd5 {[%emt 0:00:30]} Bc7 {[%emt 0:00:30]} 35. Ng2 {[%emt 0:00:30]} f5 {[%emt 0:00:30]} 36. Ne3 {[%emt 0:00:30]} Kf6 {[%emt 0:00:30]} 37. Bg8 {[%emt 0:00:30]} Kg7 {[%emt 0:00:30]} 38. Bb3 {[%emt 0:00:30]} Bc8 {[%emt 0:00:30]} 39. Bd5 {[%emt 0:00:30]} Bd7 {[%emt 0:00:30]} 40. Bg2 {[%emt 0:00:30]} Be6 {[%emt 0:00:30]} 41. a3 {[%emt 0:00:30]} Kg6 {[%emt 0:00:30]} 42. Bd5 {[%emt 0:00:30]} Bd7 {[%emt 0:00:30]} 43. Nc4 {[%emt 0:00:30]} Kf6 {[%emt 0:00:30]} 44. Kf3 {[%emt 0:00:30]} Be8 {[%emt 0:00:30]} 45. Ne3 {[%emt 0:00:30]} Bh5+ {[%emt 0:00:30]} 46. Kg3 {[%emt 0:00:30]} Be8 {[%emt 0:00:30]} 47. Bb7 {[%emt 0:00:30]} Bf7 {[%emt 0:00:30]} 48. Bc8 {[%emt 0:00:30]} Ba5 {[%emt 0:00:30]} 49. Nxf5 {[%emt 0:00:30]} Be1+ {[%emt 0:00:30]} 50. Kf3 {[%emt 0:00:30]} Bh5+ {[%emt 0:00:30]} 51. Ke3 {[%emt 0:00:30]} Bg4 {[%emt 0:00:30]} 52. Nd6 {[%emt 0:00:30]} Bd1 {[%emt 0:00:30]} 53. Ne4+ {[%emt 0:00:30]} Ke7 {[%emt 0:00:30]} 54. c4 {[%emt 0:00:30]} 1-0

[Event "Marmaris Karya-12 IM 2022"]
[Site "Icmeler-Marmaris"]
[Date "2022.01.22"]
[Round "2.3"]
[White "Haussernot, Cecile"]
[Black "Atayman, Evren"]
[Result "1-0"]
[ECO "B24"]
[WhiteElo "2188"]
[BlackElo "1616"]
[Annotator "NA"]
[PlyCount "51"]
[EventDate "2022.01.22"]
[EventType "schev"]
[EventCountry "TUR"]
[SourceTitle "playchess.com"]
[Source "ChessBase"]
[SourceQuality "1"]
[TimeControl "5400+30"]

1. e4 {[%emt 0:03:00]} c5 {[%emt 0:01:00]} 2. Nf3 {[%emt 0:01:30]} Nc6 {[%emt 0:00:30]} 3. Nc3 {[%emt 0:04:30]} g6 {[%emt 0:03:30]} 4. g3 {[%emt 0:05:30]} Bg7 {[%emt 0:03:30]} 5. Bg2 {[%emt 0:00:00]} a6 {[%emt 0:00:30]} 6. O-O {[%emt 0:02:00]} b5 {[%emt 0:04:30]} 7. Ne1 {[%emt 0:15:30]} h5 {[%emt 0:12:30]} (7... Bb7 $11) 8. h3 {[%emt 0:02:30]} h4 {[%emt 0:02:30]} (8... Bb7 $11) 9. g4 {[%emt 0:00:30]} e5 {[%emt 0:14:30]} 10. Nd5 {[%emt 0:06:30]} d6 {[%emt 0:06:30]} 11. c3 {[%emt 0:05:30]} Be6 {[%emt 0:02:30]} 12. a4 {[%emt 0:01:30]} Bxd5 {[%emt 0:05:30]} 13. exd5 {[%emt 0:00:00]} Nce7 {[%emt 0:00:00]} 14. Qe2 {[%emt 0:01:00]} Rb8 {[%emt 0:00:00]} 15. axb5 {[%emt 0:00:30]} axb5 {[%emt 0:00:30]} 16. f4 {[%emt 0:03:30]} c4 {[%emt 0:12:30]} 17. fxe5 {[%emt 0:02:30]} Qb6+ {[%emt 0:01:30]} 18. Kh1 {[%emt 0:00:00]} dxe5 {[%emt 0:01:30]} 19. d4 {[%emt 0:01:00]} cxd3 {[%emt 0:02:30]} 20. Nxd3 {[%emt 0:00:00]} Qd6 {[%emt 0:05:04]} 21. Be3 {[%emt 0:03:00]} f6 {[%emt 0:06:59]} 22. Bc5 {[%emt 0:00:30]} Qd7 {[%emt 0:00:17]} 23. Ra7 {[%emt 0:00:30]} Rb7 $18 {[%emt 0:01:32]} 24. Rxb7 {[%emt 0:00:30]} Qxb7 {[%emt 0:00:11]} 25. d6 {[%emt 0:00:00]} Nc6 {[%emt 0:01:16]} 26. Nb4 {[%emt 0:00:00]} 1-0

[Event "Marmaris Karya-12 IM 2022"]
[Site "Icmeler-Marmaris"]
[Date "2022.01.22"]
[Round "2.4"]
[White "Boshra, Alshaeby"]
[Black "Ozcan, Alperen"]
[Result "1/2-1/2"]
[ECO "B00"]
[WhiteElo "1974"]
[BlackElo "1578"]
[Annotator "ChessBase"]
[PlyCount "102"]
[EventDate "2022.01.22"]
[EventType "schev"]
[EventCountry "TUR"]
[SourceTitle "playchess.com"]
[Source "ChessBase"]
[SourceQuality "1"]
[TimeControl "5400+30"]

1. e4 {[%emt 0:19:00]} e6 {[%emt 0:01:00]} 2. d4 {[%emt 0:01:30]} d5 {[%emt 0:00:30]} 3. Nd2 {[%emt 0:00:30]} Nf6 {[%emt 0:00:30]} 4. Bd3 {[%emt 0:00:30]} Be7 {[%emt 0:04:30]} 5. Ngf3 {[%emt 0:15:30]} b6 {[%emt 0:00:30]} 6. Qe2 {[%emt 0:00:30]} Bb7 {[%emt 0:00:30]} 7. e5 {[%emt 0:00:30]} Nfd7 {[%emt 0:00:30]} 8. c3 {[%emt 0:00:30]} c5 {[%emt 0:00:30]} 9. O-O {[%emt 0:00:30]} Nc6 {[%emt 0:00:30]} 10. a3 {[%emt 0:00:30]} Qc7 {[%emt 0:00:30]} 11. Re1 {[%emt 0:00:30]} a6 {[%emt 0:00:30]} 12. Nf1 {[%emt 0:00:30]} b5 {[%emt 0:00:30]} 13. Bf4 {[%emt 0:00:30]} c4 {[%emt 0:00:30]} 14. Bc2 {[%emt 0:00:30]} a5 {[%emt 0:00:30]} 15. Bg3 {[%emt 0:00:30]} a4 {[%emt 0:00:30]} 16. Ne3 {[%emt 0:00:30]} Nb6 {[%emt 0:00:30]} 17. Rf1 {[%emt 0:00:30]} O-O-O {[%emt 0:00:30]} 18. Nd2 {[%emt 0:00:30]} h5 {[%emt 0:00:30]} 19. h3 {[%emt 0:00:30]} g6 {[%emt 0:00:30]} 20. Bh2 {[%emt 0:00:30]} Bf8 {[%emt 0:00:30]} 21. f4 {[%emt 0:00:30]} Bh6 {[%emt 0:00:30]} 22. Rf3 {[%emt 0:00:30]} Ne7 {[%emt 0:00:30]} 23. Raf1 {[%emt 0:00:30]} Qd7 {[%emt 0:00:30]} 24. g4 {[%emt 0:00:30]} Rdg8 {[%emt 0:00:30]} 25. Kf2 {[%emt 0:00:30]} hxg4 {[%emt 0:00:30]} 26. hxg4 {[%emt 0:00:30]} Na8 {[%emt 0:00:30]} 27. Ke1 {[%emt 0:00:30]} Nc7 {[%emt 0:00:30]} 28. R1f2 {[%emt 0:00:30]} Kb8 {[%emt 0:00:30]} 29. Ndf1 {[%emt 0:00:30]} Bc8 {[%emt 0:00:30]} 30. Kd1 {[%emt 0:00:30]} Ka8 {[%emt 0:00:30]} 31. Kc1 {[%emt 0:00:30]} Rf8 {[%emt 0:00:30]} 32. Kb1 {[%emt 0:00:30]} Qc6 {[%emt 0:00:30]} 33. f5 {[%emt 0:00:30]} gxf5 {[%emt 0:00:30]} 34. gxf5 {[%emt 0:00:30]} Qe8 {[%emt 0:00:30]} 35. Ng3 {[%emt 0:00:30]} Rfg8 {[%emt 0:00:30]} 36. Nh5 {[%emt 0:00:30]} Qc6 {[%emt 0:00:30]} 37. Nf6 {[%emt 0:00:30]} Rf8 {[%emt 0:00:30]} 38. fxe6 {[%emt 0:00:30]} fxe6 {[%emt 0:00:30]} 39. Neg4 {[%emt 0:00:30]} Bg7 {[%emt 0:00:30]} 40. Nh7 {[%emt 0:00:30]} Rxf3 {[%emt 0:00:30]} 41. Rxf3 {[%emt 0:00:30]} Nf5 {[%emt 0:00:30]} 42. Ng5 {[%emt 0:00:30]} Qe8 {[%emt 0:00:30]} 43. Nf6 {[%emt 0:00:30]} Qg6 {[%emt 0:00:30]} 44. Bf4 {[%emt 0:00:30]} Bxf6 {[%emt 0:00:30]} 45. exf6 {[%emt 0:00:30]} Qxf6 {[%emt 0:00:30]} 46. Bxc7 {[%emt 0:00:30]} Qxg5 {[%emt 0:00:30]} 47. Rf1 {[%emt 0:00:30]} Ne3 {[%emt 0:00:30]} 48. Bf4 {[%emt 0:00:30]} Qg2 {[%emt 0:00:30]} 49. Qxg2 {[%emt 0:00:30]} Nxg2 {[%emt 0:00:30]} 50. Be5 {[%emt 0:00:30]} Ne3 {[%emt 0:00:30]} 51. Bxh8 {[%emt 0:00:30]} Nxf1 {[%emt 0:00:30]} 1/2-1/2

[Event "Marmaris Karya-12 IM 2022"]
[Site "Icmeler-Marmaris"]
[Date "2022.01.22"]
[Round "4.2"]
[White "Boshra, Alshaeby"]
[Black "Inci, Okan"]
[Result "1-0"]
[ECO "C80"]
[WhiteElo "1974"]
[BlackElo "1653"]
[Annotator "RC"]
[PlyCount "79"]
[EventDate "2022.01.22"]
[EventType "schev"]
[EventCountry "TUR"]
[SourceTitle "playchess.com"]
[Source "ChessBase"]
[SourceQuality "1"]
[TimeControl "5400+30"]

1. e4 {[%emt 0:03:00]} e5 {[%emt 0:01:00]} 2. Nf3 {[%emt 0:00:30]} Nc6 {[%emt 0:00:00]} 3. Bb5 {[%emt 0:00:00]} a6 {[%emt 0:00:00]} 4. Ba4 {[%emt 0:00:00]} Nf6 {[%emt 0:00:00]} 5. d4 {[%emt 0:00:30]} b5 {[%emt 0:01:00]} 6. Bb3 {[%emt 0:00:00]} Nxe4 {[%emt 0:05:30]} 7. O-O {[%emt 0:00:00]} d5 {[%emt 0:00:00]} 8. Nxe5 {[%emt 0:26:30]} Nxe5 {[%emt 0:03:00]} 9. dxe5 {[%emt 0:00:30]} Be6 {[%emt 0:00:00]} 10. Nd2 {[%emt 0:02:30]} Nxd2 {[%emt 0:02:00]} 11. Bxd2 {[%emt 0:00:00]} Bc5 {[%emt 0:02:30]} 12. Kh1 {[%emt 0:02:00]} O-O {[%emt 0:03:30]} 13. f4 {[%emt 0:06:30]} Qd7 {[%emt 0:00:30]} 14. Qe1 {[%emt 0:02:30]} c6 {[%emt 0:01:30]} 15. Qg3 {[%emt 0:06:30]} Bf5 {[%emt 0:05:30]} 16. Rae1 {[%emt 0:00:30]} Rfe8 {[%emt 0:00:30]} 17. c3 {[%emt 0:11:30]} Re6 {[%emt 0:00:30]} 18. Be3 {[%emt 0:04:30]} Be7 {[%emt 0:05:30]} 19. Qf2 {[%emt 0:00:30]} Kh8 {[%emt 0:04:30]} 20. Bc2 {[%emt 0:04:30]} Rg6 {[%emt 0:02:30]} 21. Bxf5 {[%emt 0:00:30]} Qxf5 {[%emt 0:00:30]} 22. Bc5 {[%emt 0:00:30]} Bxc5 {[%emt 0:05:30]} 23. Qxc5 {[%emt 0:00:30]} h5 {[%emt 0:00:30]} 24. Rf2 {[%emt 0:12:38]} a5 {[%emt 0:03:30]} 25. Qe7 {[%emt 0:01:22]} Re6 {[%emt 0:03:30]} 26. Qh4 {[%emt 0:06:49]} g6 {[%emt 0:03:30]} 27. h3 {[%emt 0:01:07]} Kg7 {[%emt 0:02:30]} 28. g4 {[%emt 0:04:37]} hxg4 {[%emt 0:08:30]} 29. hxg4 {[%emt 0:00:04]} Qd3 {[%emt 0:00:00]} 30. Rh2 {[%emt 0:03:32]} Qf3+ {[%emt 0:01:00]} 31. Kg1 {[%emt 0:00:35]} Qxf4 {[%emt 0:00:00]} 32. Qh7+ {[%emt 0:00:53]} Kf8 {[%emt 0:00:00]} 33. Rf1 {[%emt 0:00:50]} Qe3+ {[%emt 0:01:30]} 34. Rhf2 {[%emt 0:00:29]} Ra7 {[%emt 0:01:30]} 35. Qh8+ {[%emt 0:00:21]} Ke7 {[%emt 0:00:30]} 36. Kg2 {[%emt 0:00:39]} Rxe5 {[%emt 0:00:00]} 37. Rxf7+ {[%emt 0:00:08]} Kd6 {[%emt 0:09:00]} 38. Qb8+ {[%emt 0:00:29]} Kc5 {[%emt 0:00:30]} 39. Qxa7+ {[%emt 0:00:06]} Kc4 {[%emt 0:00:00]} 40. b3+ {[%emt 0:00:33]} 1-0